[Event "POL-chT 2nd League Juniors 2020"]
[Site "Sypniewo"]
[Date "2020.10.27"]
[Round "6.4"]
[White "Pycinski, Wladyslaw"]
[Black "Suszczynski, Dominik"]
[Result "1/2-1/2"]
[ECO "D02"]
[WhiteElo "1149"]
[BlackElo "1241"]
[Annotator "NA RC"]
[PlyCount "85"]
[EventDate "2020.10.23"]
[EventType "team-tourn"]
[EventCountry "POL"]
[SourceTitle "playchess.com"]
[Source "ChessBase"]
[SourceQuality "1"]
[TimeControl "5400+30"]

1. d4 {[%emt 0:00:34]} d5 {[%emt 0:00:00]} 2. Nf3 {[%emt 0:00:47]} Nf6 {[%emt 0:00:27]} 3. g3 {[%emt 0:00:30]} Bf5 {[%emt 0:00:48]} 4. Bg2 {[%emt 0:00:51]} e6 {[%emt 0:01:03]} 5. O-O {[%emt 0:01:18]} h6 {[%emt 0:01:17]} 6. c4 {[%emt 0:03:38]} c6 {[%emt 0:01:34]} 7. Nbd2 {[%emt 0:02:10]} Be7 {[%emt 0:02:01]} 8. b3 {[%emt 0:03:31]} O-O {[%emt 0:01:06]} 9. Bb2 {[%emt 0:02:59]} Nbd7 {[%emt 0:01:52]} 10. Re1 {[%emt 0:04:10]} Bh7 {[%emt 0:05:02]} 11. a3 {[%emt 0:03:13]} Ne4 {[%emt 0:04:06]} 12. Nxe4 {[%emt 0:03:56]} Bxe4 {[%emt 0:00:08]} 13. Nd2 {[%emt 0:00:26]} Bxg2 {[%emt 0:00:10]} 14. Kxg2 {[%emt 0:00:05]} Nf6 {[%emt 0:16:37]} 15. e4 {[%emt 0:03:55]} dxe4 {[%emt 0:00:09]} 16. Nxe4 {[%emt 0:00:12]} Re8 {[%emt 0:01:43]} 17. Qc2 {[%emt 0:01:08]} Qc7 {[%emt 0:02:16]} 18. Rad1 {[%emt 0:02:31]} Rad8 19. Nd2 {[%emt 0:06:10]} c5 {[%emt 0:17:19]} 20. Nf3 {[%emt 0:01:31]} cxd4 {[%emt 0:01:16]} 21. Nxd4 {[%emt 0:00:42]} a6 {[%emt 0:01:59]} 22. Qe2 {[%emt 0:09:13]} Rd7 {[%emt 0:04:44]} 23. Nf3 {[%emt 0:06:26]} Red8 {[%emt 0:01:18]} 24. Ne5 {[%emt 0:01:33]} Rxd1 {[%emt 0:00:04]} 25. Rxd1 {[%emt 0:00:06]} Rxd1 {[%emt 0:00:03]} 26. Qxd1 {[%emt 0:00:10]} Bxa3 {[%emt 0:02:40]} 27. Ba1 {[%emt 0:07:18]} Bd6 {[%emt 0:01:21]} 28. Nd3 {[%emt 0:01:37]} Nd7 {[%emt 0:04:03]} 29. Qg4 {[%emt 0:04:30]} Ne5 {[%emt 0:00:26]} 30. Qd4 {[%emt 0:00:30]} f6 {[%emt 0:00:14]} 31. c5 {[%emt 0:02:58]} Qc6+ {[%emt 0:00:10]} 32. Kh3 {[%emt 0:00:19]} Nf3 {[%emt 0:02:03]} 33. Qxd6 {[%emt 0:01:44]} Ng5+ {[%emt 0:00:06]} 34. Kh4 {[%emt 0:00:26]} Qe4+ {[%emt 0:00:17]} 35. Nf4 {[%emt 0:00:47]} Nf3+ {[%emt 0:00:16]} 36. Kh3 {[%emt 0:00:27]} Ng1+ {[%emt 0:00:03]} 37. Kh4 {[%emt 0:00:24]} Nf3+ {[%emt 0:03:31]} 38. Kh3 {[%emt 0:00:50]} Ng1+ {[%emt 0:00:41]} 39. Kh4 {[%emt 0:00:21]} Nf3+ {[%emt 0:05:53]} 40. Kh3 Ng5+ 41. Kh4 e5 42. Qd8+ Kh7 43. Qd3 1/2-1/2

[Event "POL-chT 2nd League Juniors 2020"]
[Site "Sypniewo"]
[Date "2020.10.27"]
[Round "6.5"]
[White "Seemann, Pola"]
[Black "Tarka, Aleksandra"]
[Result "1-0"]
[ECO "B36"]
[WhiteElo "1566"]
[BlackElo "1676"]
[Annotator "NA RC"]
[PlyCount "103"]
[EventDate "2020.10.23"]
[EventType "team-tourn"]
[EventCountry "POL"]
[SourceTitle "playchess.com"]
[Source "ChessBase"]
[SourceQuality "1"]
[TimeControl "5400+30"]

1. e4 {[%emt 0:00:00]} c5 {[%emt 0:00:00]} 2. Nf3 {[%emt 0:00:00]} Nc6 {[%emt 0:00:00]} 3. d4 {[%emt 0:00:00]} cxd4 {[%emt 0:00:00]} 4. Nxd4 {[%emt 0:00:00]} g6 {[%emt 0:00:00]} 5. c4 {[%emt 0:00:00]} Nf6 {[%emt 0:00:13]} 6. Nc3 {[%emt 0:00:13]} Nxd4 {[%emt 0:00:13]} 7. Qxd4 {[%emt 0:00:35]} d6 {[%emt 0:00:12]} 8. f3 {[%emt 0:01:45]} Bg7 {[%emt 0:01:07]} 9. Be3 {[%emt 0:03:10]} O-O {[%emt 0:01:48]} 10. Qd2 {[%emt 0:01:32]} Be6 {[%emt 0:13:37]} 11. Be2 {[%emt 0:05:07]} a5 {[%emt 0:04:17]} 12. O-O {[%emt 0:03:52]} a4 {[%emt 0:03:50]} 13. Rac1 Qa5 14. Kh1 {[%emt 0:17:53]} Nd7 {[%emt 0:25:05]} 15. Bh6 {[%emt 0:13:02]} Rfc8 {[%emt 0:17:57]} 16. Bxg7 {[%emt 0:07:01]} Kxg7 {[%emt 0:00:09]} 17. Qd4+ {[%emt 0:00:42]} Qe5 {[%emt 0:07:38]} 18. Rfd1 {[%emt 0:06:19]} Qxd4 {[%emt 0:04:40]} 19. Rxd4 {[%emt 0:00:14]} Ne5 {[%emt 0:02:41]} 20. f4 {[%emt 0:08:13]} Nc6 {[%emt 0:06:38]} 21. Rdd1 {[%emt 0:01:21]} f5 {[%emt 0:05:33]} 22. exf5 {[%emt 0:01:12]} Bxf5 {[%emt 0:00:24]} 23. Nd5 {[%emt 0:00:25]} Ra5 {[%emt 0:01:44]} 24. Bd3 {[%emt 0:02:08]} Bxd3 {[%emt 0:03:17]} 25. Rxd3 {[%emt 0:00:08]} Rca8 {[%emt 0:00:42]} 26. Re1 {[%emt 0:01:54]} Kf7 {[%emt 0:00:23]} 27. Rde3 {[%emt 0:00:51]} Re8 {[%emt 0:00:23]} 28. g4 {[%emt 0:02:52]} Rc5 {[%emt 0:00:40]} 29. b3 {[%emt 0:01:17]} a3 {[%emt 0:00:39]} 30. Rh3 {[%emt 0:00:38]} Kg7 {[%emt 0:00:29]} 31. Nc7 {[%emt 0:00:12]} Rb8 {[%emt 0:00:36]} 32. Ne6+ {[%emt 0:00:07]} Kg8 {[%emt 0:00:27]} 33. Nxc5 {[%emt 0:00:26]} dxc5 {[%emt 0:00:03]} 34. Rd3 {[%emt 0:01:24]} Kf8 {[%emt 0:00:47]} 35. Rd5 {[%emt 0:01:20]} b6 {[%emt 0:00:36]} 36. f5 {[%emt 0:03:00]} Rd8 {[%emt 0:00:38]} 37. Rxd8+ {[%emt 0:02:31]} Nxd8 {[%emt 0:00:04]} 38. fxg6 {[%emt 0:00:35]} hxg6 {[%emt 0:00:08]} 39. h4 {[%emt 0:00:34]} e6 {[%emt 0:01:14]} 40. h5 {[%emt 0:00:18]} gxh5 {[%emt 0:00:31]} 41. gxh5 {[%emt 0:00:07]} Kg7 {[%emt 0:00:29]} 42. Re2 {[%emt 0:00:15]} Kh6 {[%emt 0:00:33]} 43. Rh2 {[%emt 0:00:07]} Nf7 {[%emt 0:00:30]} 44. Kg2 {[%emt 0:00:45]} Ng5 {[%emt 0:00:31]} 45. Kg3 {[%emt 0:00:50]} Ne4+ {[%emt 0:00:27]} 46. Kf4 {[%emt 0:00:20]} Nf6 {[%emt 0:00:28]} 47. Rh3 {[%emt 0:00:47]} Nd7 {[%emt 0:00:38]} 48. Rh1 {[%emt 0:00:52]} Nf6 {[%emt 0:00:26]} 49. Ke5 {[%emt 0:00:12]} Nxh5 {[%emt 0:00:24]} 50. Kxe6 {[%emt 0:00:11]} Kg5 {[%emt 0:00:29]} 51. Rxh5+ {[%emt 0:00:32]} Kxh5 {[%emt 0:00:24]} 52. Kd6 {[%emt 0:00:07]} 1-0

[Event "POL-chT 2nd League Juniors 2020"]
[Site "Sypniewo"]
[Date "2020.10.27"]
[Round "6.5"]
[White "Wasala, Wiktoria"]
[Black "Kudlak, Julia"]
[Result "1/2-1/2"]
[ECO "C47"]
[WhiteElo "1458"]
[BlackElo "1574"]
[Annotator "NA RC"]
[PlyCount "71"]
[EventDate "2020.10.23"]
[EventType "team-tourn"]
[EventCountry "POL"]
[SourceTitle "playchess.com"]
[Source "ChessBase"]
[SourceQuality "1"]
[TimeControl "5400+30"]

1. e4 {[%emt 0:00:00]} e5 {[%emt 0:00:00]} 2. Nf3 Nc6 {[%emt 0:00:28]} 3. Nc3 {[%emt 0:00:20]} Nf6 {[%emt 0:00:49]} 4. d4 {[%emt 0:00:05]} exd4 {[%emt 0:00:52]} 5. Nxd4 {[%emt 0:00:07]} Bb4 {[%emt 0:00:47]} 6. Nxc6 {[%emt 0:00:12]} bxc6 {[%emt 0:00:16]} 7. Bd3 {[%emt 0:00:11]} O-O {[%emt 0:01:03]} 8. O-O {[%emt 0:00:12]} d5 {[%emt 0:02:11]} 9. exd5 {[%emt 0:06:24]} cxd5 {[%emt 0:00:23]} 10. Bg5 {[%emt 0:01:33]} Be6 {[%emt 0:00:36]} 11. Bxf6 {[%emt 0:08:21]} Qxf6 {[%emt 0:04:11]} 12. Nb5 {[%emt 0:08:28]} Ba5 {[%emt 0:02:33]} 13. c3 {[%emt 0:03:10]} Bb6 {[%emt 0:00:52]} 14. Nd4 {[%emt 0:01:20]} Bd7 {[%emt 0:06:56]} 15. Qh5 {[%emt 0:02:33]} g6 {[%emt 0:04:27]} 16. Qxd5 {[%emt 0:00:19]} Rad8 {[%emt 0:02:08]} 17. Qf3 {[%emt 0:07:36]} Bxd4 {[%emt 0:00:27]} 18. cxd4 {[%emt 0:00:23]} Qxd4 {[%emt 0:04:18]} 19. b3 {[%emt 0:10:05]} Be6 {[%emt 0:05:21]} 20. Be4 {[%emt 0:04:15]} a5 {[%emt 0:03:19]} 21. h3 {[%emt 0:02:36]} a4 {[%emt 0:02:32]} 22. Rfd1 {[%emt 0:01:19]} Qb4 {[%emt 0:01:24]} 23. Bd5 {[%emt 0:01:37]} Bxd5 {[%emt 0:01:43]} 24. Rxd5 {[%emt 0:00:09]} axb3 {[%emt 0:01:51]} 25. axb3 {[%emt 0:00:10]} Rb8 {[%emt 0:04:50]} 26. Rd7 {[%emt 0:02:46]} c5 {[%emt 0:04:14]} 27. Raa7 {[%emt 0:05:45]} Qe1+ {[%emt 0:03:18]} 28. Kh2 {[%emt 0:00:06]} Qe5+ {[%emt 0:00:36]} 29. g3 {[%emt 0:02:00]} Qe6 {[%emt 0:01:27]} 30. Qd5 {[%emt 0:03:48]} Qf6 {[%emt 0:06:54]} 31. Qxc5 {[%emt 0:01:25]} Rxb3 {[%emt 0:02:18]} 32. Qd4 {[%emt 0:00:08]} Qf3 {[%emt 0:01:52]} 33. Rd8 Rxd8 {[%emt 0:03:04]} 34. Qxd8+ {[%emt 0:02:58]} Kg7 {[%emt 0:00:07]} 35. Qd4+ {[%emt 0:00:05]} Qf6 {[%emt 0:01:03]} 36. Qxf6+ {[%emt 0:00:35]} 1/2-1/2

[Event "POL-chT 2nd League Juniors 2020"]
[Site "Sypniewo"]
[Date "2020.10.27"]
[Round "6.6"]
[White "Pastuszko, Katarzyna"]
[Black "Gaszka, Zuzanna"]
[Result "1-0"]
[ECO "C55"]
[WhiteElo "1251"]
[BlackElo "1417"]
[Annotator "NA RC"]
[PlyCount "97"]
[EventDate "2020.10.23"]
[EventType "team-tourn"]
[EventCountry "POL"]
[SourceTitle "playchess.com"]
[Source "ChessBase"]
[SourceQuality "1"]
[TimeControl "5400+30"]

1. e4 {[%emt 0:00:00]} e5 {[%emt 0:00:00]} 2. Nf3 {[%emt 0:00:00]} Nc6 {[%emt 0:00:00]} 3. Bc4 {[%emt 0:00:00]} Nf6 {[%emt 0:00:00]} 4. d3 {[%emt 0:00:00]} h6 {[%emt 0:00:00]} 5. O-O {[%emt 0:00:25]} d6 {[%emt 0:00:25]} 6. Re1 {[%emt 0:00:30]} g6 {[%emt 0:00:22]} 7. c3 {[%emt 0:00:32]} Bg7 {[%emt 0:00:23]} 8. a4 {[%emt 0:00:29]} a5 {[%emt 0:01:52]} 9. Nbd2 {[%emt 0:01:11]} O-O {[%emt 0:00:24]} 10. Nf1 {[%emt 0:01:10]} d5 {[%emt 0:03:48]} 11. exd5 {[%emt 0:04:06]} Nxd5 {[%emt 0:00:14]} 12. Qb3 {[%emt 0:09:25]} Nb6 {[%emt 0:12:56]} 13. Bd2 {[%emt 0:08:28]} Nxc4 14. dxc4 {[%emt 0:10:23]} Ra6 {[%emt 0:15:46]} 15. Be3 {[%emt 0:16:05]} e4 {[%emt 0:08:04]} 16. Rad1 {[%emt 0:02:52]} Qe7 {[%emt 0:01:41]} 17. Nd4 {[%emt 0:04:01]} Ne5 {[%emt 0:04:51]} 18. Nd2 {[%emt 0:07:58]} Nd3 {[%emt 0:04:02]} 19. Re2 {[%emt 0:09:12]} f5 {[%emt 0:05:51]} 20. f3 {[%emt 0:04:42]} f4 {[%emt 0:07:20]} 21. Nxe4 {[%emt 0:09:19]} Ne5 {[%emt 0:18:57]} 22. c5+ {[%emt 0:03:28]} Kh8 {[%emt 0:03:10]} 23. Bf2 {[%emt 0:00:49]} Bf5 {[%emt 0:03:01]} 24. Qxb7 {[%emt 0:02:06]} Raa8 {[%emt 0:00:57]} 25. Qb3 {[%emt 0:00:52]} Rab8 {[%emt 0:01:09]} 26. Qc2 {[%emt 0:00:37]} Qf7 {[%emt 0:01:14]} 27. b3 {[%emt 0:01:08]} Rfd8 {[%emt 0:00:48]} 28. Qd2 {[%emt 0:01:23]} g5 {[%emt 0:01:57]} 29. b4 {[%emt 0:00:57]} Nc4 {[%emt 0:00:56]} 30. Qa2 {[%emt 0:00:49]} axb4 {[%emt 0:00:38]} 31. Nd2 {[%emt 0:01:36]} b3 {[%emt 0:02:34]} 32. N2xb3 {[%emt 0:00:27]} Ne3 {[%emt 0:01:12]} 33. Bxe3 {[%emt 0:00:30]} fxe3 {[%emt 0:00:08]} 34. Rde1 {[%emt 0:00:16]} Bd3 {[%emt 0:01:04]} 35. Rb2 {[%emt 0:00:58]} Bxd4 {[%emt 0:00:37]} 36. Nxd4 {[%emt 0:00:11]} Bc4 {[%emt 0:00:47]} 37. Qb1 {[%emt 0:00:39]} Ra8 {[%emt 0:00:19]} 38. Rb4 {[%emt 0:00:29]} Re8 {[%emt 0:00:43]} 39. Qf5 {[%emt 0:00:24]} Qxf5 {[%emt 0:00:36]} 40. Nxf5 {[%emt 0:00:01]} Ba6 {[%emt 0:00:36]} 41. Rxe3 {[%emt 0:00:09]} Rxe3 {[%emt 0:00:09]} 42. Nxe3 {[%emt 0:00:02]} Re8 {[%emt 0:00:11]} 43. Kf2 {[%emt 0:00:12]} Rd8 {[%emt 0:00:04]} 44. Rd4 {[%emt 0:00:09]} Rb8 {[%emt 0:00:08]} 45. Rd7 {[%emt 0:01:03]} Rb2+ {[%emt 0:00:12]} 46. Kg3 {[%emt 0:00:14]} Bc8 {[%emt 0:01:01]} 47. Rd8+ {[%emt 0:00:07]} Kg7 {[%emt 0:00:09]} 48. Rxc8 {[%emt 0:00:08]} Ra2 {[%emt 0:00:19]} 49. Rxc7+ {[%emt 0:00:07]} 1-0

[Event "POL-chT 2nd League Juniors 2020"]
[Site "Sypniewo"]
[Date "2020.10.27"]
[Round "6.8"]
[White "Niemier, Hubert"]
[Black "Wojtasik, Szymon"]
[Result "1-0"]
[ECO "D00"]
[WhiteElo "1771"]
[BlackElo "1380"]
[Annotator "NA RC"]
[PlyCount "73"]
[EventDate "2020.10.23"]
[EventType "team-tourn"]
[EventCountry "POL"]
[SourceTitle "playchess.com"]
[Source "ChessBase"]
[SourceQuality "1"]
[TimeControl "5400+30"]

1. d4 {[%emt 0:00:00]} d5 {[%emt 0:00:00]} 2. Bg5 {[%emt 0:00:00]} c6 {[%emt 0:04:30]} 3. e3 {[%emt 0:00:01]} Qb6 {[%emt 0:00:28]} 4. b3 {[%emt 0:00:21]} Bf5 {[%emt 0:02:40]} 5. Bd3 {[%emt 0:00:17]} Bg6 {[%emt 0:05:28]} 6. Nf3 {[%emt 0:00:34]} Nd7 {[%emt 0:01:01]} 7. O-O {[%emt 0:00:39]} e6 {[%emt 0:05:49]} 8. Qe2 {[%emt 0:04:55]} Ngf6 {[%emt 0:04:00]} 9. c4 a6 {[%emt 0:27:11]} 10. Nc3 {[%emt 0:03:15]} Bb4 {[%emt 0:02:10]} 11. Na4 {[%emt 0:03:37]} Qd8 {[%emt 0:04:18]} 12. Ne5 {[%emt 0:02:03]} Be7 {[%emt 0:05:21]} 13. Bxf6 {[%emt 0:03:42]} Nxf6 {[%emt 0:01:05]} 14. c5 {[%emt 0:04:28]} O-O {[%emt 0:08:47]} 15. Nb6 {[%emt 0:00:52]} Ra7 {[%emt 0:05:28]} 16. b4 {[%emt 0:03:49]} Qc7 {[%emt 0:00:54]} 17. a4 {[%emt 0:00:26]} a5 {[%emt 0:05:41]} 18. f4 {[%emt 0:00:40]} Ne4 {[%emt 0:03:52]} 19. Nxg6 {[%emt 0:04:55]} hxg6 {[%emt 0:00:02]} 20. Bxe4 {[%emt 0:00:10]} dxe4 {[%emt 0:00:02]} 21. Qc2 {[%emt 0:00:12]} f5 {[%emt 0:00:25]} 22. Qc4 {[%emt 0:00:12]} Kf7 {[%emt 0:05:40]} 23. b5 {[%emt 0:01:31]} Rb8 {[%emt 0:04:49]} 24. Qc3 {[%emt 0:01:32]} Bf6 {[%emt 0:01:42]} 25. Nc4 {[%emt 0:03:25]} Qd7 {[%emt 0:00:28]} 26. b6 {[%emt 0:00:37]} Ra6 {[%emt 0:00:26]} 27. Nxa5 {[%emt 0:00:53]} Rba8 {[%emt 0:00:33]} 28. Nc4 {[%emt 0:00:08]} Rxa4 {[%emt 0:00:20]} 29. Rxa4 {[%emt 0:00:05]} Rxa4 {[%emt 0:00:01]} 30. Nd6+ {[%emt 0:00:10]} Kf8 {[%emt 0:01:17]} 31. Ra1 {[%emt 0:00:08]} Rxa1+ {[%emt 0:00:29]} 32. Qxa1 {[%emt 0:00:04]} g5 {[%emt 0:00:30]} 33. Qa8+ {[%emt 0:00:13]} Bd8 {[%emt 0:00:30]} 34. Nxb7 {[%emt 0:01:05]} Ke7 {[%emt 0:00:02]} 35. Qxd8+ {[%emt 0:01:09]} Qxd8 {[%emt 0:00:01]} 36. Nxd8 {[%emt 0:00:07]} Kxd8 {[%emt 0:00:06]} 37. fxg5 {[%emt 0:00:04]} 1-0

[Event "POL-chT 2nd League Juniors 2020"]
[Site "Sypniewo"]
[Date "2020.10.27"]
[Round "6.9"]
[White "Duda, Szymon"]
[Black "Trzebinski, Patryk"]
[Result "1/2-1/2"]
[ECO "A05"]
[WhiteElo "1529"]
[BlackElo "1837"]
[Annotator "NA RC"]
[PlyCount "61"]
[EventDate "2020.10.23"]
[EventType "team-tourn"]
[EventCountry "POL"]
[SourceTitle "playchess.com"]
[Source "ChessBase"]
[SourceQuality "1"]
[TimeControl "5400+30"]

1. Nf3 {[%emt 0:00:00]} Nf6 {[%emt 0:00:00]} 2. d4 {[%emt 0:00:12]} c5 {[%emt 0:00:04]} 3. c3 {[%emt 0:00:53]} d5 {[%emt 0:00:28]} 4. Bf4 {[%emt 0:00:12]} Nc6 {[%emt 0:00:05]} 5. e3 {[%emt 0:00:13]} cxd4 {[%emt 0:00:13]} 6. cxd4 {[%emt 0:01:24] D02: 1 d4 d5 2 Nf3 sidelines, including 2...Nf6 3 g3 and 2...Nf6 3 Bf4.} Bf5 {[%emt 0:03:22]} 7. a3 {[%emt 0:00:45]} e6 {[%emt 0:01:36]} 8. Bd3 {[%emt 0:00:54]} Ne4 {[%emt 0:01:11]} 9. Nc3 {[%emt 0:01:10] [#]} Bd6 $146 {[%emt 0:01:20]} ({Predecessor:} 9... f6 10. O-O Bd6 11. Bxd6 Qxd6 12. Bxe4 Bxe4 13. Nxe4 dxe4 14. Nd2 e5 15. Nxe4 Qd8 16. dxe5 fxe5 17. Qxd8+ Rxd8 {1-0 (55) Tulienina,K-Bienko,J Maribor 2012}) 10. Bxd6 {[%emt 0:03:14]} Qxd6 {[%emt 0:00:06]} 11. Qb1 {[%emt 0:02:16]} Nxc3 {[%emt 0:01:10]} 12. bxc3 {[%emt 0:01:30]} Bxd3 {[%emt 0:00:03]} 13. Qxd3 {[%emt 0:00:23]} O-O {[%emt 0:00:09]} 14. c4 {[%emt 0:01:37]} e5 {[%emt 0:13:38]} 15. dxe5 {[%emt 0:07:27]} Nxe5 {[%emt 0:00:07]} 16. Qxd5 {[%emt 0:00:57]} Nxf3+ {[%emt 0:00:10]} 17. Qxf3 {[%emt 0:01:38]} Qd3 {[%emt 0:00:20]} 18. Rc1 {[%emt 0:02:15]} Rfd8 {[%emt 0:02:26]} 19. Qe2 {[%emt 0:00:29]} Qxa3 {[%emt 0:00:02]} 20. O-O {[%emt 0:00:14]} Rac8 {[%emt 0:01:09]} 21. Ra1 {[%emt 0:00:56]} Qc5 {[%emt 0:00:11]} 22. Rfb1 {[%emt 0:01:07]} Rd7 {[%emt 0:03:50]} 23. g3 {[%emt 0:02:17]} a6 {[%emt 0:04:40]} 24. Ra2 {[%emt 0:03:05]} Qxc4 {[%emt 0:02:42]} (24... Rcc7 $11) 25. Qxc4 {[%emt 0:00:41]} Rxc4 {[%emt 0:00:17]} 26. Rxa6 {[%emt 0:00:15]} Kf8 {[%emt 0:00:52]} 27. Ra7 {[%emt 0:02:22]} Rcc7 {[%emt 0:00:14]} 28. Kf1 {[%emt 0:00:34]} Ke7 {[%emt 0:00:09]} 29. Ke2 {[%emt 0:01:03]} Kd6 {[%emt 0:00:33]} 30. Ra2 {[%emt 0:00:34]} Rc5 {[%emt 0:01:51]} 31. Rab2 $14 {[%emt 0:01:23]} 1/2-1/2

[Event "POL-chT 2nd League Juniors 2020"]
[Site "Sypniewo"]
[Date "2020.10.27"]
[Round "6.9"]
[White "Doroba, Ludwik"]
[Black "Skrzypinski, Jan"]
[Result "0-1"]
[ECO "E73"]
[WhiteElo "1330"]
[BlackElo "1418"]
[Annotator "NA RC"]
[PlyCount "76"]
[EventDate "2020.10.23"]
[EventType "team-tourn"]
[EventCountry "POL"]
[SourceTitle "playchess.com"]
[Source "ChessBase"]
[SourceQuality "1"]
[TimeControl "5400+30"]

1. d4 {[%emt 0:00:00]} Nf6 {[%emt 0:00:00]} 2. c4 {[%emt 0:00:00]} g6 {[%emt 0:00:00]} 3. Nc3 {[%emt 0:00:00]} Bg7 {[%emt 0:00:00]} 4. e4 {[%emt 0:00:00]} d6 {[%emt 0:00:34]} 5. Be2 {[%emt 0:01:29]} Nbd7 {[%emt 0:01:57]} 6. Bg5 {[%emt 0:03:44]} O-O {[%emt 0:02:07]} 7. g4 {[%emt 0:03:08]} c5 {[%emt 0:00:43]} 8. d5 {[%emt 0:07:42]} Qa5 {[%emt 0:01:34]} 9. Bd2 {[%emt 0:04:40]} Qb6 {[%emt 0:02:53]} 10. Qb3 {[%emt 0:05:51]} Qxb3 {[%emt 0:03:20]} 11. axb3 {[%emt 0:00:08]} Ne5 {[%emt 0:01:10]} 12. h3 {[%emt 0:01:31]} Ne8 {[%emt 0:01:51]} 13. f4 {[%emt 0:04:03]} Nd7 14. Nf3 {[%emt 0:06:40]} a6 {[%emt 0:09:02]} 15. O-O-O {[%emt 0:05:29]} Rb8 {[%emt 0:01:41]} 16. Kc2 {[%emt 0:09:30]} Nc7 {[%emt 0:05:57]} 17. Rh2 {[%emt 0:10:19]} b5 {[%emt 0:04:00]} 18. Rdh1 {[%emt 0:02:54]} bxc4 {[%emt 0:02:55]} 19. bxc4 {[%emt 0:00:29]} Nb6 {[%emt 0:03:08]} 20. g5 {[%emt 0:03:43]} Bd7 {[%emt 0:00:38]} 21. h4 {[%emt 0:03:35]} Bg4 {[%emt 0:02:04]} 22. b3 {[%emt 0:03:55]} Rb7 {[%emt 0:06:17]} 23. Ne1 {[%emt 0:04:37]} Bxe2 {[%emt 0:01:24]} 24. Nxe2 {[%emt 0:01:04]} Rfb8 {[%emt 0:00:26]} 25. h5 {[%emt 0:01:44]} Nd7 {[%emt 0:02:41]} 26. hxg6 {[%emt 0:00:35]} hxg6 {[%emt 0:00:22]} 27. Bc3 {[%emt 0:01:28]} Bxc3 {[%emt 0:00:50]} 28. Nxc3 Nf8 {[%emt 0:00:03]} 29. f5 {[%emt 0:01:28]} Kg7 {[%emt 0:03:46]} 30. Nd3 {[%emt 0:01:23]} Rxb3 {[%emt 0:00:38]} 31. Rf2 {[%emt 0:00:40]} Ne8 {[%emt 0:00:17]} 32. Nb5 {[%emt 0:00:56]} Rxd3 {[%emt 0:00:52]} 33. Kxd3 {[%emt 0:00:03]} axb5 {[%emt 0:00:05]} 34. cxb5 {[%emt 0:01:07]} Rxb5 {[%emt 0:00:05]} 35. f6+ {[%emt 0:00:53]} exf6 {[%emt 0:00:06]} 36. gxf6+ {[%emt 0:00:08]} Nxf6 {[%emt 0:00:03]} 37. Rhf1 {[%emt 0:01:19]} N8d7 {[%emt 0:00:05]} 38. Kc2 {[%emt 0:00:29]} Rb4 {[%emt 0:00:12]} 0-1

[Event "POL-chT 2nd League Juniors 2020"]
[Site "Sypniewo"]
[Date "2020.10.27"]
[Round "6.10"]
[White "Malinowski, Szymon"]
[Black "Lapczynski, Jacek"]
[Result "1/2-1/2"]
[ECO "D02"]
[WhiteElo "1740"]
[BlackElo "1212"]
[Annotator "NA RC"]
[PlyCount "69"]
[EventDate "2020.10.23"]
[EventType "team-tourn"]
[EventCountry "POL"]
[SourceTitle "playchess.com"]
[Source "ChessBase"]
[SourceQuality "1"]
[TimeControl "5400+30"]

1. d4 d5 {[%emt 0:00:32]} 2. Nf3 {[%emt 0:00:00]} Nf6 {[%emt 0:01:24]} 3. Bf4 {[%emt 0:00:10]} Nbd7 {[%emt 0:02:51]} 4. e3 {[%emt 0:00:12]} e6 {[%emt 0:01:22]} 5. Bd3 {[%emt 0:00:49]} c5 {[%emt 0:01:24]} 6. c3 {[%emt 0:00:30]} Be7 {[%emt 0:02:02]} 7. O-O {[%emt 0:00:43]} O-O {[%emt 0:01:03]} 8. Nbd2 {[%emt 0:00:21]} b6 {[%emt 0:02:58]} 9. a3 {[%emt 0:02:44]} a5 {[%emt 0:03:53]} 10. Ne5 {[%emt 0:04:05]} Nxe5 {[%emt 0:02:24]} 11. Bxe5 {[%emt 0:00:11]} Ba6 {[%emt 0:01:03]} 12. Bxa6 {[%emt 0:02:11]} Rxa6 {[%emt 0:01:51]} 13. Nf3 {[%emt 0:06:28]} Ra8 {[%emt 0:03:55]} 14. Qe2 {[%emt 0:08:12]} c4 {[%emt 0:12:51]} 15. a4 {[%emt 0:01:57]} Bd6 {[%emt 0:02:15]} 16. Bxf6 {[%emt 0:01:28]} Qxf6 {[%emt 0:01:26]} 17. e4 {[%emt 0:00:13]} Qd8 {[%emt 0:07:03]} 18. e5 {[%emt 0:01:02]} Be7 {[%emt 0:00:53]} 19. Nd2 {[%emt 0:00:16]} Qd7 {[%emt 0:01:28]} 20. f4 {[%emt 0:01:07]} Rfb8 {[%emt 0:01:28]} 21. f5 {[%emt 0:10:53]} exf5 {[%emt 0:02:07]} 22. Qf3 {[%emt 0:11:59]} g6 {[%emt 0:02:11]} 23. Rf2 {[%emt 0:01:52]} b5 {[%emt 0:02:29]} 24. axb5 {[%emt 0:00:11]} Rxb5 {[%emt 0:02:35]} 25. Nxc4 {[%emt 0:00:42]} Qc6 {[%emt 0:01:39]} 26. Ne3 {[%emt 0:01:15]} Bg5 {[%emt 0:01:14]} 27. Qg3 {[%emt 0:06:21]} Bxe3 {[%emt 0:04:35]} 28. Qxe3 {[%emt 0:00:09]} Qb6 {[%emt 0:02:22]} 29. Ra2 {[%emt 0:04:33]} Re8 {[%emt 0:04:08]} 30. g4 fxg4 {[%emt 0:01:28]} 31. Qf4 {[%emt 0:10:22]} Qe6 {[%emt 0:02:16]} 32. Ra1 {[%emt 0:02:14]} Reb8 {[%emt 0:02:11]} 33. Ra2 {[%emt 0:04:02]} Re8 {[%emt 0:04:36]} 34. Ra1 {[%emt 0:06:35]} Reb8 {[%emt 0:00:26]} 35. Ra2 {[%emt 0:03:15]} 1/2-1/2